bitfinex-derivatives/quotes_SOLF0:USTF0_20250703
["timestamp","ask_amount","ask_price","bid_price","bid_amount"]
[1751532541320,3.61874415,155.67,155.63,43.76]
[1751532541720,5.98582036,155.69,155.63,43.76]
[1751532541925,2.32466681,155.64,155.63,43.76]
[1751532543530,2.32466681,155.64,155.63,50.1833]
[1751532543721,6.4225,155.65,155.63,43.76]
[1751532545524,3.63239705,155.66,155.63,43.76]
[1751532545728,3.63239705,155.64,155.63,43.76]
[1751532546529,6.4229,155.65,155.63,43.76]
[1751532546830,10.05529705,155.65,155.63,43.76]
[1751532547925,10.05529705,155.65,155.63,50.1832]
[1751532549326,6.4229,155.64,155.63,43.76]
[1751532549526,3.63239705,155.65,155.63,43.76]
[1751532549741,3.63239705,155.65,155.62,6.4235]
[1751532550029,10.05499705,155.65,155.62,6.4235]
[1751532550428,3.63239705,155.63,155.61,6.4239]
[1751532550829,3.63239705,155.63,155.62,6.4237]
[1751532559842,6.4225,155.65,155.63,6.4231]
[1751532560045,3.63239705,155.64,155.63,6.4231]
[1751532565752,2.32491184,155.64,155.63,6.4231]
[1751532569052,2.32491184,155.65,155.64,6.4225]
[1751532570560,2.32491184,155.65,155.59,228.56]
[1751532570561,2.32491184,155.67,155.63,2.32491184]
[1751532570759,2.32491184,155.69,155.65,2.32491184]
[1751532570955,2.32491184,155.71,155.68,2.32491184]
[1751532571259,5.99443093,155.73,155.69,2.32491184]
[1751532571260,2.32491184,155.73,155.69,2.32491184]
[1751532571458,2.32491184,155.73,155.7,6.4202]
[1751532571459,8.74411184,155.73,155.7,6.4202]
[1751532571757,8.74411184,155.73,155.69,2.32491184]
[1751532572150,6.4192,155.73,155.69,2.32491184]
[1751532572356,8.74411184,155.73,155.7,6.4203]
[1751532573759,6.4192,155.73,155.7,6.4203]
[1751532574262,6.4197,155.72,155.69,6.4207]
[1751532577768,3.62827001,155.74,155.7,6.4203]
[1751532577958,3.62827001,155.74,155.67,3.62827001]
[1751532579669,6.4196,155.72,155.69,6.4206]
[1751532585464,6.4193,155.73,155.7,6.4203]
[1751532585665,6.4193,155.73,155.69,3.62827001]
[1751532586064,6.4193,155.73,155.7,6.4202]
[1751532586557,3.62827001,155.75,155.7,6.4203]
[1751532587464,6.4196,155.73,155.7,6.4203]
[1751532588066,6.4189,155.74,155.71,6.4199]
[1751532588771,6.4185,155.75,155.7,47.36827001]
[1751532589174,3.62827001,155.77,155.7,47.36827001]
[1751532589470,6.4188,155.74,155.71,6.4197]
[1751532590774,6.4185,155.75,155.72,6.4195]
[1751532590971,3.62827001,155.77,155.72,6.4195]
[1751532591273,3.62827001,155.77,155.7,47.36827001]
[1751532591471,6.419,155.74,155.71,6.4198]
[1751532593867,6.419,155.74,155.71,8.7412999]
[1751532594574,6.419,155.74,155.72,2.3214999]
[1751532599388,6.4192,155.73,155.7,50.1603]
[1751532599588,6.4192,155.73,155.7,52.4817999]
[1751532600986,6.4192,155.73,155.71,6.4199]
[1751532601384,6.4192,155.73,155.71,8.7413999]
[1751532601892,6.4192,155.73,155.71,2.3214999]
[1751532602089,6.4192,155.73,155.7,52.4817999]
[1751532602888,6.419,155.74,155.71,8.7413999]
[1751532603090,6.419,155.74,155.72,2.3214999]
[1751532604691,6.419,155.74,155.71,8.7413999]
[1751532605688,6.4193,155.73,155.7,50.1602]
[1751532605992,6.4193,155.73,155.71,2.3214999]
[1751532606184,6.4193,155.73,155.71,8.7413999]
[1751532606784,8.7403999,155.74,155.71,8.7413999]
[1751532607089,2.3214999,155.74,155.71,8.7413999]
[1751532607289,8.7404999,155.74,155.71,8.7413999]
[1751532610289,6.4192,155.73,155.71,2.3214999]
[1751532610692,2.3214999,155.74,155.71,2.3214999]
[1751532610892,8.7405999,155.74,155.71,2.3214999]
[1751532611293,8.7405999,155.74,155.71,8.7414999]
[1751532611490,6.4191,155.74,155.71,8.7414999]
[1751532612192,6.4191,155.74,155.72,2.3214999]
[1751532613088,6.4191,155.74,155.71,6.42]
[1751532613294,6.4191,155.74,155.71,8.7414999]
[1751532622196,6.4193,155.73,155.71,2.3214999]
[1751532625700,6.4189,155.74,155.71,8.7414999]
[1751532626400,6.4193,155.73,155.71,2.3214999]
[1751532628702,2.3214999,155.73,155.7,46.0614999]
[1751532628905,2.3214999,155.74,155.71,2.3214999]
[1751532629104,6.419,155.74,155.71,8.7413999]
[1751532634905,6.4192,155.73,155.7,50.1602]
[1751532635200,2.3214999,155.74,155.71,2.3214999]
[1751532635905,8.7405999,155.74,155.71,2.3214999]
[1751532637501,8.7405999,155.74,155.7,50.1602]
[1751532637713,8.7405999,155.74,155.71,2.3214999]
[1751532639616,6.4192,155.73,155.71,2.3214999]
[1751532641821,6.4192,155.73,155.7,52.4816999]
[1751532644524,6.4192,155.73,155.71,2.3214999]
[1751532648634,6.4196,155.72,155.7,43.74]
[1751532649434,6.4196,155.72,155.7,228.3]
[1751532649834,6.4196,155.72,155.7,230.6214999]
[1751532652533,6.4196,155.72,155.7,228.3]
[1751532652722,6.4196,155.72,155.7,230.6214999]
[1751532653427,6.4196,155.72,155.7,237.0418999]
[1751532653934,8.7408999,155.73,155.7,237.0418999]
[1751532654124,6.4194,155.73,155.7,237.0418999]
[1751532654735,8.7408999,155.73,155.7,237.0418999]
[1751532655938,6.4194,155.73,155.7,237.0418999]
[1751532664248,6.4194,155.73,155.71,6.42]
[1751532664553,6.4194,155.73,155.72,184.54]
[1751532678256,8.7408999,155.73,155.72,184.54]
[1751532679856,6.4194,155.73,155.72,184.54]
[1751532683059,6.4202,155.71,155.69,50.1008]
[1751532683259,6.4202,155.71,155.7,184.52]
[1751532683760,8.74228627,155.72,155.7,184.52]
[1751532684261,6.4197,155.72,155.7,190.9403]
[1751532686362,6.4197,155.72,155.7,184.52]
[1751532686562,6.42,155.71,155.7,184.52]
[1751532688468,6.4204,155.7,155.69,43.68]
[1751532688662,6.4204,155.7,155.69,228.18]
[1751532689454,8.74298627,155.7,155.69,43.68]
[1751532689656,6.4218,155.67,155.65,43.66]
[1751532689860,2.32258627,155.67,155.65,43.66]
[1751532690166,2.32258627,155.66,155.65,228.16]
[1751532690466,2.32258627,155.66,155.65,43.66]
[1751532691566,8.74468627,155.66,155.65,43.66]
[1751532692867,8.74468627,155.66,155.65,228.18]
[1751532695268,8.74468627,155.66,155.65,43.66]
[1751532701476,6.4221,155.66,155.65,43.66]
[1751532701670,2.32258627,155.67,155.65,43.66]
[1751532702174,6.4221,155.66,155.65,43.66]
[1751532704971,8.74468627,155.66,155.65,43.66]
[1751532705472,2.32258627,155.66,155.61,43.68]
[1751532705680,10.50398482,155.71,155.62,184.54]
[1751532705681,2.32258627,155.65,155.62,184.54]
[1751532706177,6.4232,155.64,155.63,184.54]
[1751532706381,6.4232,155.64,155.61,52.42648627]
[1751532706773,6.4232,155.64,155.62,184.54]
[1751532707369,2.32258627,155.65,155.62,184.54]
[1751532707571,6.4233,155.63,155.62,184.54]
[1751532707771,2.32258627,155.65,155.62,190.9636]
[1751532708579,6.4231,155.64,155.62,190.9636]
[1751532709376,2.32258627,155.63,155.56,554.8]
[1751532709574,2.32258627,155.62,155.59,2.32258627]
[1751532709776,2.32258627,155.63,155.6,184.54]
[1751532709975,2.32258627,155.63,155.6,186.86258627]
[1751532710177,6.4239,155.62,155.6,186.86258627]
[1751532710480,6.4239,155.62,155.6,184.54]
[1751532710679,6.4239,155.62,155.59,8.74738627]
[1751532710978,6.4239,155.62,155.6,184.54]
[1751532711682,6.4239,155.62,155.6,186.86258627]
[1751532711882,6.4239,155.62,155.6,184.54]
[1751532712372,6.4239,155.62,155.59,6.4248]
[1751532712574,6.4239,155.62,155.6,184.54]
[1751532712977,8.74648627,155.62,155.6,184.54]
[1751532714482,8.74648627,155.62,155.6,190.9645]
[1751532714683,6.4239,155.62,155.6,190.9645]
[1751532715485,6.4234,155.63,155.61,6.4241]
[1751532715680,8.74598627,155.63,155.6,184.54]
[1751532715880,2.32258627,155.63,155.6,184.54]
[1751532716180,6.4238,155.62,155.6,184.54]
[1751532717579,6.4238,155.62,155.6,190.9645]
[1751532718184,6.4238,155.62,155.6,193.28708627]
[1751532718684,8.74608627,155.63,155.6,193.28708627]
[1751532720182,2.32258627,155.63,155.61,6.424]
[1751532720382,8.74558627,155.64,155.61,6.424]
[1751532720887,6.4234,155.63,155.61,6.424]
[1751532721385,6.4234,155.63,155.6,193.28688627]
[1751532722289,8.74598627,155.63,155.6,193.28688627]
[1751532723786,8.74598627,155.63,155.6,190.9643]
[1751532728789,8.74598627,155.63,155.6,6.4243]
[1751532728990,8.74598627,155.63,155.61,184.54]
[1751532735599,6.4237,155.62,155.61,184.54]
[1751532737003,6.01078482,155.68,155.61,184.54]
[1751532737299,2.32258627,155.66,155.62,2.32258627]
[1751532737499,2.32258627,155.66,155.62,45.98258627]
[1751532738604,8.74528627,155.65,155.62,45.98258627]
[1751532738804,2.32258627,155.65,155.62,43.66]
[1751532739005,2.32258627,155.64,155.62,43.66]
[1751532739309,2.32258627,155.63,155.62,43.66]
[1751532740499,8.74588627,155.63,155.62,43.66]
[1751532740704,2.32258627,155.63,155.58,43.66]
[1751532740905,2.32258627,155.61,155.59,184.5]
[1751532741202,8.74708627,155.61,155.59,184.5]
[1751532743202,2.32258627,155.62,155.59,184.5]
[1751532743406,2.32258627,155.64,155.6,2.32258627]
[1751532744009,6.4233,155.63,155.6,8.74688627]
[1751532745508,8.74588627,155.63,155.6,8.74688627]
[1751532746912,8.74588627,155.63,155.6,6.4243]
[1751532747107,8.74588627,155.63,155.6,2.32258627]
[1751532747108,6.4237,155.62,155.6,2.32258627]
[1751532747315,6.4237,155.62,155.61,184.5]
[1751532751214,8.74598627,155.63,155.61,184.5]
[1751532752711,8.74598627,155.63,155.61,190.9241]
[1751532753116,8.74598627,155.63,155.61,184.5]
[1751532753612,6.4237,155.62,155.61,184.5]
[1751532755419,8.74608627,155.63,155.61,184.5]
[1751532758018,6.4237,155.62,155.61,184.5]
[1751532761623,8.74628627,155.62,155.61,184.5]
[1751532763227,6.4237,155.62,155.61,184.5]
[1751532764624,8.74628627,155.62,155.61,184.5]
[1751532765624,6.4241,155.61,155.6,43.64]
[1751532765828,6.4241,155.61,155.6,228.14]
[1751532774528,6.4241,155.61,155.6,43.64]
[1751532774724,6.4241,155.61,155.6,228.12]
[1751532778526,6.4241,155.61,155.6,184.48]
[1751532782832,8.74668627,155.61,155.6,184.48]
[1751532783739,6.4249,155.59,155.58,43.64]
[1751532783927,6.4249,155.59,155.58,228.12]
[1751532784628,6.4247,155.6,155.58,228.12]
[1751532785636,2.32258627,155.62,155.58,236.86788627]
[1751532785832,2.32258627,155.61,155.58,230.44258627]
[1751532786330,6.4247,155.6,155.58,230.44258627]
[1751532787840,8.74688627,155.61,155.58,230.44258627]
[1751532788138,8.74688627,155.61,155.59,184.48]
[1751532791437,6.4239,155.62,155.59,193.22728627]
[1751532792441,8.74668627,155.61,155.59,190.9047]
[1751532792942,8.74668627,155.61,155.59,184.48]
[1751532793742,6.4245,155.6,155.59,184.48]
[1751532795748,8.74688627,155.61,155.59,184.48]
[1751532799749,6.4243,155.61,155.59,184.48]
[1751532801649,2.32258627,155.63,155.59,186.80258627]
[1751532802150,2.32258627,155.62,155.59,184.48]
[1751532803150,8.74648627,155.62,155.59,190.9047]
[1751532803951,6.4242,155.61,155.59,190.9047]
[1751532804342,6.01078482,155.64,155.59,190.9047]
[1751532804547,8.74648627,155.62,155.59,190.9047]
[1751532805453,6.4241,155.61,155.59,190.9047]
[1751532806956,8.74648627,155.62,155.59,190.9047]
[1751532808350,8.74648627,155.62,155.59,193.22728627]
[1751532809957,6.4239,155.62,155.59,193.22728627]
[1751532813459,6.4235,155.63,155.59,186.80258627]
[1751532813667,6.01078482,155.67,155.62,2.32258627]
[1751532813868,8.33337109,155.67,155.63,186.80258627]
[1751532814165,6.4224,155.66,155.63,193.22558627]
[1751532815164,6.4224,155.66,155.63,186.80258627]
[1751532815664,8.33337109,155.67,155.63,186.80258627]
[1751532815863,2.32258627,155.66,155.63,193.22568627]
[1751532816164,6.4225,155.65,155.63,193.22568627]
[1751532819367,8.74478627,155.66,155.63,193.22568627]
[1751532819763,2.32258627,155.66,155.63,184.48]
[1751532820063,2.32258627,155.64,155.58,43.64]
[1751532820264,2.32258627,155.59,155.58,228.1]
[1751532820761,8.74708627,155.6,155.58,228.1]
[1751532822263,8.74708627,155.6,155.58,43.64]
[1751532822467,8.74708627,155.6,155.58,228.08]
[1751532823273,8.74708627,155.6,155.58,234.5053]
[1751532823274,2.32258627,155.6,155.58,234.5053]
[1751532823469,8.74688627,155.61,155.58,234.5053]
[1751532825071,2.32258627,155.63,155.6,2.32258627]
[1751532825368,2.32258627,155.64,155.59,2.32258627]
[1751532825568,6.4237,155.63,155.6,8.74708627]
[1751532825769,6.4237,155.63,155.61,184.54]
[1751532829370,6.4237,155.62,155.61,184.54]
[1751532829672,9.64371159,155.65,155.6,184.52]
[1751532829866,6.4244,155.61,155.6,184.52]
[1751532834579,6.4247,155.6,155.58,43.64]
[1751532834779,6.4247,155.6,155.59,184.5]
[1751532840087,6.4243,155.61,155.59,184.5]
[1751532840585,3.63292677,155.65,155.59,184.5]
[1751532840883,6.01078482,155.66,155.59,188.13292677]
[1751532841285,81.49164819,155.67,155.61,6.4239]
[1751532841286,6.4231,155.64,155.61,6.4239]
[1751532841585,3.63292677,155.65,155.58,43.64]
[1751532841785,3.63292677,155.65,155.59,190.8847]
[1751532842988,3.63292677,155.65,155.59,6.4247]
[1751532843189,3.63292677,155.65,155.6,184.56]
[1751532844079,6.4241,155.61,155.6,184.56]
[1751532844282,3.63292677,155.62,155.58,228.18]
[1751532844678,6.4249,155.6,155.58,228.18]
[1751532844880,3.63292677,155.62,155.58,43.64]
[1751532846489,6.4248,155.6,155.58,50.0653]
[1751532846692,3.63292677,155.64,155.58,43.64]
[1751532847190,3.63292677,155.64,155.59,6.4249]
[1751532847885,2.32522979,155.63,155.59,8.75012979]
[1751532848081,6.4238,155.62,155.59,8.75012979]
[1751532848287,6.4238,155.62,155.6,186.82522979]
[1751532848487,2.32522979,155.64,155.6,184.5]
[1751532848684,2.32522979,155.64,155.6,186.82522979]
[1751532848888,6.4241,155.62,155.6,186.82522979]
[1751532849090,2.32522979,155.64,155.6,186.82522979]
[1751532849291,2.32522979,155.63,155.6,186.82522979]
[1751532849492,2.32522979,155.63,155.6,184.5]
[1751532850091,6.4241,155.61,155.6,184.5]
[1751532851790,6.427,155.54,155.53,1.21572012]
[1751532851988,6.427,155.54,155.49,2.32603152]
[1751532851989,2.32603152,155.54,155.49,2.32603152]
[1751532852394,6.4281,155.52,155.5,2.32603152]
[1751532852596,6.4281,155.52,155.49,45.96603152]
[1751532852896,2.32603152,155.53,155.49,45.96603152]
[1751532853394,6.4279,155.52,155.49,45.96603152]
[1751532853792,6.4279,155.52,155.49,43.64]
[1751532857187,6.4283,155.51,155.49,43.64]
[1751532860596,6.428,155.52,155.49,43.64]
[1751532862199,6.4283,155.51,155.49,43.64]
[1751532864696,3.63756302,155.53,155.49,43.64]
[1751532865797,6.4279,155.52,155.49,43.64]
[1751532866996,6.4284,155.51,155.49,43.64]
[1751532867200,3.63756302,155.53,155.49,43.64]
[1751532868090,6.4287,155.5,155.49,43.64]
[1751532873804,8.75746449,155.5,155.49,43.64]
[1751532878107,6.4287,155.5,155.49,43.64]
[1751532879809,8.75746449,155.5,155.49,43.64]
[1751532881010,2.32876449,155.5,155.49,43.64]
[1751532881606,8.75746449,155.5,155.49,43.64]
[1751532884011,2.32876449,155.5,155.49,43.64]
[1751532884817,8.75746449,155.5,155.49,43.64]
[1751532886008,6.4287,155.5,155.49,43.64]
[1751532886216,8.75746449,155.5,155.49,43.64]
[1751532893217,2.32876449,155.5,155.49,43.64]
[1751532894613,8.75716449,155.51,155.49,43.64]
[1751532895216,6.4287,155.5,155.49,43.64]
[1751532896414,11.76295196,155.5,155.49,43.64]
[1751532897020,5.33425196,155.5,155.49,43.64]
[1751532897821,5.33425196,155.5,155.49,50.0691]
[1751532898022,5.97109447,155.56,155.49,45.96876449]
[1751532898322,2.32876449,155.56,155.53,2.32876449]
[1751532898518,2.32876449,155.57,155.53,2.32876449]
[1751532899323,6.4264,155.56,155.53,8.75596449]
[1751532899723,6.4264,155.56,155.53,2.32876449]
[1751532900524,8.75516449,155.56,155.53,2.32876449]
[1751532902025,8.75516449,155.56,155.53,8.75616449]
[1751532902225,6.4264,155.56,155.53,8.75616449]
[1751532902524,8.75516449,155.56,155.53,2.32876449]
[1751532902727,8.75516449,155.56,155.53,8.75616449]
[1751532903425,8.75516449,155.56,155.53,6.4274]
[1751532903728,6.4264,155.56,155.53,6.4274]
[1751532904433,6.4264,155.56,155.53,8.75616449]
[1751532906229,6.4264,155.56,155.53,2.32876449]
[1751532906825,8.75516449,155.56,155.53,2.32876449]
[1751532907217,8.75516449,155.56,155.52,193.57636449]
[1751532907418,2.32876449,155.56,155.52,187.14876449]
[1751532908034,2.32876449,155.56,155.53,6.4271]
[1751532908826,8.75496449,155.56,155.53,6.4271]
[1751532911430,6.426,155.57,155.54,6.427]
[1751532911635,7.65204827,155.56,155.54,6.427]
[1751532911828,2.32876449,155.56,155.54,6.427]
[1751532912227,7.65168232,155.56,155.54,6.427]
[1751532913134,14.07798232,155.56,155.53,6.4272]
[1751532913324,8.75506449,155.56,155.53,6.4272]
[1751532914333,6.4263,155.56,155.53,6.4272]
[1751532914631,8.75506449,155.56,155.53,6.4272]
[1751532917933,8.75546449,155.55,155.52,191.2478]
[1751532918734,2.32876449,155.55,155.52,184.82]
[1751532919035,2.32876449,155.53,155.49,228.28]
[1751532919237,8.75696449,155.52,155.49,50.069]
[1751532919437,2.32876449,155.51,155.49,43.64]
[1751532920334,2.32876449,155.5,155.49,43.64]
[1751532920735,2.32876449,155.52,155.49,43.64]
[1751532921136,8.75666449,155.52,155.49,50.0689]
[1751532924835,8.75666449,155.52,155.49,43.64]
[1751532925433,8.75666449,155.52,155.49,50.069]
[1751532931548,6.4276,155.53,155.5,6.4286]
[1751532931751,2.32876449,155.54,155.5,2.32876449]
[1751532932347,8.75596449,155.54,155.51,6.428]
[1751532938152,8.75596449,155.54,155.51,8.75676449]
[1751532938454,6.4272,155.54,155.51,8.75676449]
[1751532938653,6.4272,155.54,155.51,6.428]
[1751532938853,6.4272,155.54,155.51,8.75676449]
[1751532941450,2.32876449,155.52,155.49,43.64]
[1751532941650,2.3303,155.54,155.47,555.48]
[1751532941963,8.75726449,155.51,155.47,555.48]
[1751532942159,8.75726449,155.51,155.47,557.80876449]
[1751532942960,8.75726449,155.51,155.47,564.23866449]
[1751532943158,8.75726449,155.51,155.47,750.89866449]
[1751532943359,8.75726449,155.51,155.47,744.46876449]
[1751532945060,8.75726449,155.51,155.47,742.14]
[1751532945358,2.32876449,155.5,155.47,742.14]
[1751532945761,5.40171172,155.49,155.47,742.14]
[1751532946056,2.32876449,155.5,155.47,742.14]
[1751532946252,5.40171172,155.49,155.47,742.14]
[1751532946450,2.32876449,155.5,155.47,742.14]
[1751532946658,5.40059441,155.49,155.47,742.14]
[1751532946856,2.32876449,155.5,155.47,742.14]
[1751532947047,5.40059386,155.49,155.47,742.14]
[1751532947249,2.32876449,155.5,155.47,742.14]
[1751532947456,5.39963038,155.49,155.47,742.14]
[1751532947656,8.75746449,155.5,155.47,742.14]
[1751532947858,5.39963038,155.49,155.47,742.14]
[1751532948060,8.75746449,155.5,155.47,742.14]
[1751532949060,8.75746449,155.5,155.47,555.48]
[1751532949259,8.75746449,155.5,155.48,186.54]
[1751532954360,6.4284,155.51,155.48,186.54]
[1751532954561,5.38399416,155.5,155.48,188.86876449]
[1751532954765,2.32876449,155.51,155.48,188.86876449]
[1751532954967,6.4282,155.52,155.48,195.29816449]
[1751532955168,5.38371417,155.51,155.48,195.29816449]
[1751532955364,2.32876449,155.51,155.48,239.03816449]
[1751532955667,2.32876449,155.51,155.48,236.7094]
[1751532956261,8.75706449,155.51,155.48,236.7094]
[1751532957371,2.32876449,155.51,155.48,236.7094]
[1751532958271,8.75706449,155.51,155.48,236.7094]
[1751532959169,2.32876449,155.51,155.48,52.49816449]
[1751532959369,8.75676449,155.52,155.49,186.42]
[1751532959563,5.39012296,155.51,155.49,186.42]
[1751532959866,5.39012296,155.5,155.49,186.42]
[1751532960970,6.4283,155.51,155.49,186.42]
[1751532961166,11.81944102,155.5,155.49,186.42]
[1751532964370,14.14820551,155.5,155.49,186.42]
[1751532966076,11.81944102,155.5,155.49,186.42]
[1751532966879,11.81944102,155.5,155.49,186.22]
[1751532970586,14.14820551,155.5,155.49,186.22]
[1751532974288,14.14820551,155.5,155.48,43.74]
[1751532974289,6.4291,155.49,155.48,43.74]
[1751532974593,14.14860551,155.49,155.48,229.84]
[1751532975584,14.14860551,155.49,155.48,229.8]
[1751532976691,6.4309,155.45,155.44,44.28]
[1751532976881,6.4309,155.45,155.44,230.34]
[1751532979992,8.75926449,155.46,155.44,230.34]
[1751532980393,6.4305,155.46,155.44,230.34]
[1751532980590,6.4305,155.46,155.44,44.28]
[1751532980892,8.75886449,155.47,155.45,186.0]
[1751532981095,2.32876449,155.47,155.45,186.0]
[1751532982896,8.75896449,155.47,155.45,186.0]
[1751532983098,2.32876449,155.46,155.44,44.28]
[1751532983304,2.32876449,155.46,155.45,186.0]
[1751532983595,14.15395629,155.46,155.45,186.0]
[1751532983796,14.15395629,155.46,155.44,44.28]
[1751532983987,8.75906449,155.46,155.45,185.94]
[1751532984191,14.15395629,155.46,155.45,185.94]
[1751532985995,5.3948918,155.46,155.45,185.94]
[1751532986190,5.3948918,155.46,155.45,188.26876449]
[1751532986790,5.3948918,155.46,155.45,185.94]
[1751532988396,8.75846449,155.48,155.45,185.94]
[1751532988595,5.40000118,155.47,155.45,185.94]
[1751532988792,8.75846449,155.48,155.45,185.94]
[1751532988992,5.39569596,155.47,155.45,185.94]
[1751532989295,8.75846449,155.48,155.45,185.94]
[1751532989498,5.39598502,155.47,155.45,185.94]
[1751532989798,8.75846449,155.48,155.45,185.94]
[1751532989997,5.39598502,155.47,155.45,188.26876449]
[1751532990197,8.75846449,155.48,155.45,188.26876449]
[1751532990400,6.4303,155.46,155.45,185.94]
[1751532993400,6.4302,155.47,155.45,185.94]
[1751532997003,8.75896449,155.47,155.45,185.94]
[1751532997303,11.8301272,155.46,155.45,185.94]
[1751533002512,11.8301272,155.46,155.45,185.6]
[1751533004509,5.3998272,155.46,155.45,185.6]
[1751533005602,11.8301272,155.46,155.45,185.6]
[1751533015212,6.4307,155.45,155.44,44.28]
[1751533015516,14.16111145,155.45,155.44,229.7]
[1751533015714,14.16111602,155.45,155.44,229.7]
[1751533016217,5.3998272,155.45,155.44,229.7]
[1751533016418,5.3998272,155.45,155.44,232.03058882]
[1751533017418,5.3998272,155.45,155.44,229.7]
[1751533017615,11.8305272,155.45,155.44,229.7]
[1751533022221,11.8305272,155.45,155.44,44.28]
[1751533022521,11.8305272,155.45,155.44,229.64]
[1751533023223,11.8305272,155.45,155.44,44.28]
[1751533023523,14.16111602,155.45,155.44,229.6]
[1751533023726,11.8305272,155.45,155.44,229.6]
[1751533024022,14.16111602,155.45,155.44,229.6]
[1751533029427,14.16111602,155.45,155.44,185.32]
[1751533030728,5.3998272,155.45,155.41,43.9]
[1751533031027,2.33058882,155.42,155.41,43.9]
[1751533031225,14.16241602,155.42,155.41,229.1]
[1751533032326,6.433,155.4,155.38,555.6]
[1751533032630,6.433,155.4,155.39,185.28]
[1751533032928,6.4334,155.39,155.37,50.3338]
[1751533033130,6.4334,155.39,155.38,185.26]
[1751533033529,2.33058882,155.39,155.33,43.9]
[1751533033735,2.33058882,155.37,155.33,43.9]
[1751533033929,2.33058882,155.37,155.34,186.38]
[1751533034234,8.76448882,155.38,155.34,8.76548882]
[1751533034536,2.33058882,155.4,155.36,2.33058882]
[1751533034834,5.37465235,155.39,155.37,186.52]
[1751533035128,5.37465235,155.38,155.37,186.52]
[1751533036137,5.37465235,155.38,155.33,50.3354]
[1751533036341,2.33058882,155.38,155.34,188.91058882]
[1751533036834,5.38123977,155.4,155.35,2.33058882]
[1751533037036,7.71182859,155.39,155.36,186.64]
[1751533037230,6.434,155.37,155.36,186.64]
[1751533037736,6.4338,155.38,155.36,186.64]
[1751533037934,2.33058882,155.38,155.36,186.64]
[1751533038832,2.33058882,155.37,155.33,43.9]
[1751533039028,2.33058882,155.36,155.34,186.7]
[1751533039234,8.76528882,155.36,155.34,186.7]
[1751533039730,4.5153,155.4,155.33,50.3355]
[1751533039731,8.76568882,155.35,155.33,230.6]
[1751533040131,2.33058882,155.35,155.33,230.6]
[1751533040337,6.4353,155.34,155.33,230.58]
[1751533040937,6.4353,155.34,155.33,230.56]
[1751533041136,2.33058882,155.35,155.33,230.56]
[1751533041439,2.33058882,155.36,155.33,230.56]
[1751533041632,6.4351,155.35,155.33,230.56]
[1751533042238,2.33058882,155.34,155.3,555.66]
[1751533042438,2.33058882,155.32,155.3,562.0969]
[1751533042630,2.33058882,155.33,155.31,186.62]
[1751533042937,6.4352,155.35,155.31,2.33058882]
[1751533043232,2.33058882,155.35,155.32,186.66]
[1751533043639,8.76558882,155.35,155.32,186.66]
[1751533043835,2.33058882,155.35,155.32,186.66]
[1751533044337,8.76558882,155.35,155.32,186.66]
[1751533044638,2.33058882,155.37,155.33,2.33058882]
[1751533044833,2.33058882,155.37,155.34,186.64]
[1751533045039,6.4347,155.36,155.34,186.64]
[1751533045339,78.52558046,155.4,155.34,186.64]
[1751533045542,2.33058882,155.37,155.34,186.64]
[1751533045739,8.96602352,155.39,155.34,186.64]
[1751533046934,6.4349,155.35,155.34,186.64]
[1751533047542,3.64517257,155.39,155.34,186.64]
[1751533047744,8.96418305,155.39,155.34,186.64]
[1751533048243,6.4347,155.36,155.34,186.64]
[1751533048438,5.99726208,155.47,155.34,190.28517257]
[1751533048636,3.64517257,155.43,155.35,3.64517257]
[1751533048836,6.433,155.4,155.35,3.64517257]
[1751533049533,6.433,155.4,155.37,6.434]
[1751533049732,6.433,155.4,155.38,186.62]
[1751533049945,3.64517257,155.43,155.38,186.62]
[1751533050146,3.64517257,155.43,155.35,3.64517257]